fUSD/lending_fUSD_20250221
["ID","MTS","AMOUNT","RATE_DAILY","PERIOD"]
[353980055,1740172274702,-1687.94,0.0001186,2]
[353980056,1740172274711,-316.32067241,0.0001186,2]
[353980057,1740172274721,-1236.11,0.0001186,2]
[353980058,1740172274730,-500.0,0.0001186,2]
[353980059,1740172274740,-527.93,0.0001186,2]
[353980060,1740172274749,-500.0,0.0001186,2]
[353980061,1740172274759,-836.59,0.0001186,2]
[353980062,1740172274768,-1031.57,0.0001186,2]
[353980063,1740172274777,-1035.44,0.0001186,2]
[353980064,1740172274786,-500.0,0.0001186,2]
[353980065,1740172274795,-1245.12,0.0001186,2]
[353980066,1740172274804,-1117.96,0.0001186,2]
[353980067,1740172274814,-1068.45,0.0001186,2]
[353980068,1740172274823,-1183.89,0.0001186,2]
[353980069,1740172274833,-500.0,0.0001186,2]
[353980070,1740172274842,-1056.87,0.0001186,2]
[353980071,1740172274852,-5637.87,0.0001186,2]
[353980072,1740172274861,-797.09,0.0001186,2]
[353980073,1740172274871,-559.58,0.0001186,2]
[353980074,1740172274881,-1352.53,0.0001186,2]
[353980075,1740172274890,-739.7,0.0001186,2]
[353980076,1740172274899,-500.0,0.0001186,2]
[353980077,1740172274910,-1479.65,0.0001186,2]
[353980078,1740172274920,-896.66,0.0001186,2]
[353980079,1740172274931,-500.0,0.0001186,2]
[353980080,1740172274942,-2215.1,0.0001186,2]
[353980081,1740172274952,-1219.06,0.0001186,2]
[353980082,1740172274962,-500.0,0.0001186,2]
[353980083,1740172274972,-1253.82,0.0001186,2]
[353980084,1740172274984,-1134.86,0.0001186,2]
[353980085,1740172274994,-1523.22,0.0001186,2]
[353980086,1740172275004,-500.0,0.0001186,2]
[353980087,1740172275014,-500.0,0.0001186,2]
[353980088,1740172275024,-1190.42,0.0001186,2]
[353980089,1740172275034,-942.8,0.0001186,2]
[353980090,1740172275044,-500.0,0.0001186,2]
[353980091,1740172275054,-500.0,0.0001186,2]
[353980092,1740172275064,-579.37,0.0001186,2]
[353980093,1740172275073,-1258.98,0.0001186,2]
[353980094,1740172275084,-1291.85,0.0001186,2]
[353980095,1740172275094,-500.0,0.0001186,2]
[353980096,1740172275104,-1149.69,0.0001186,2]
[353980097,1740172275114,-661.23,0.0001186,2]
[353980098,1740172275124,-2660.4,0.0001186,2]
[353980099,1740172275134,-1991.69,0.0001186,2]
[353980100,1740172275144,-500.0,0.0001186,2]
[353980101,1740172275154,-614.9,0.0001186,2]
[353980102,1740172275163,-1151.83,0.0001186,2]
[353980103,1740172275173,-500.0,0.0001186,2]
[353980104,1740172275183,-811.74,0.0001186,2]
[353980105,1740172275194,-1450.82,0.0001186,2]
[353980106,1740172275203,-1170.09,0.0001186,2]
[353980107,1740172275214,-500.0,0.0001186,2]
[353980108,1740172275224,-500.0,0.0001186,2]
[353980109,1740172275233,-897.28,0.0001186,2]
[353980110,1740172275240,-1737.05,0.0001186,2]
[353980111,1740172275248,-500.0,0.0001186,2]
[353980112,1740172275254,-853.87,0.0001186,2]
[353980113,1740172275262,-500.0,0.0001186,2]
[353980114,1740172275270,-638.91,0.0001186,2]
[353980115,1740172275277,-511.08,0.0001186,2]
[353980116,1740172275283,-373.6336068,0.0001186,2]
[353980117,1740172275290,-1229.62,0.0001186,2]
[353980118,1740172275296,-580.46,0.0001186,2]
[353980119,1740172275304,-1513.79,0.0001186,2]
[353980120,1740172275312,-794.55,0.0001186,2]
[353980121,1740172275319,-1136.08,0.0001186,2]
[353980122,1740172275325,-1175.93,0.0001186,2]
[353980123,1740172275332,-500.0,0.0001186,2]
[353980124,1740172275339,-500.0,0.0001186,2]
[353980125,1740172275346,-987.72,0.0001186,2]
[353980126,1740172275356,-731.97,0.0001186,2]
[353980127,1740172275365,-500.0,0.0001186,2]
[353980128,1740172275376,-1199.69,0.0001186,2]
[353980129,1740172275386,-1172.47,0.0001186,2]
[353980130,1740172275395,-2284.05,0.0001186,2]
[353980131,1740172275405,-500.0,0.0001186,2]
[353980132,1740172275420,-5314.28,0.0001186,2]
[353980133,1740172275430,-1158.45,0.0001186,2]
[353980134,1740172275440,-588.49,0.0001186,2]
[353980135,1740172275449,-500.0,0.0001186,2]
[353980136,1740172275460,-1637.66,0.0001186,2]
[353980137,1740172275470,-1092.4,0.0001186,2]
[353980138,1740172275479,-500.0,0.0001186,2]
[353980139,1740172275491,-1130.79,0.0001186,2]
[353980140,1740172275500,-589.95,0.0001186,2]
[353980141,1740172275511,-961.8,0.0001186,2]
[353980142,1740172275520,-500.0,0.0001186,2]
[353980143,1740172275530,-839.71,0.0001186,2]
[353980144,1740172275539,-500.0,0.0001186,2]
[353980145,1740172275551,-597.77,0.0001186,2]
[353980146,1740172275561,-863.56,0.0001186,2]
[353980147,1740172275570,-2270.11,0.0001186,2]
[353980148,1740172275580,-2553.24,0.0001186,2]
[353980149,1740172275589,-500.0,0.0001186,2]
[353980150,1740172275598,-1389.81,0.0001186,2]
[353980151,1740172275607,-500.0,0.00011861,2]
[353980152,1740172275617,-519.67,0.00011861,2]
[353980153,1740172275626,-500.0,0.00011861,2]
[353980154,1740172275635,-156.12377589,0.00011861,2]
[353980155,1740172275645,-500.0,0.00011861,2]
[353980156,1740172275654,-500.0,0.00011861,2]
[353980157,1740172275663,-500.0,0.00011861,2]
[353980158,1740172275672,-500.0,0.00011861,2]
[353980159,1740172275681,-500.0,0.00011861,2]
[353980160,1740172275691,-500.0,0.00011861,2]
[353980161,1740172275700,-500.0,0.00011861,2]
[353980162,1740172275709,-500.0,0.00011861,2]
[353980163,1740172275718,-500.0,0.00011861,2]
[353980164,1740172275727,-500.0,0.00011861,2]
[353980165,1740172275737,-500.0,0.00011861,2]
[353980166,1740172275746,-500.0,0.00011861,2]
[353980167,1740172275755,-500.0,0.00011861,2]
[353980168,1740172275764,-500.0,0.00011862,2]
[353980169,1740172275773,-1739.79,0.00011863,2]
[353980170,1740172275782,-439.29,0.00011863,2]
[353980171,1740172275791,-150.0,0.00011863,2]
[353980172,1740172275800,-300.0,0.00011863,2]
[353980173,1740172275810,-150.0,0.00011873,2]
[353980174,1740172275819,-150.0,0.00011887,2]
[353980175,1740172275829,-150.0,0.00011899,2]
[353980176,1740172275839,-1400.0,0.000119,4]
[353980177,1740172275848,-6176.4117622,0.000119,2]
[353980178,1740172275857,-177.92527861,0.000119,2]
[353980179,1740172275869,-150.0,0.00011914,2]
[353980180,1740172275879,-240.0,0.00011926,2]
[353980181,1740172275888,-7930.84512847,0.00011926,2]
[353980182,1740172275898,-500.0,0.00011941,2]
[353980183,1740172275908,-649.82,0.00011941,2]
[353980184,1740172275917,-622.03,0.00011941,2]
[353980185,1740172275927,-1075.7,0.00011941,2]
[353980186,1740172275937,-855.71,0.00011941,2]
[353980187,1740172275946,-1013.9,0.00011941,2]
[353980188,1740172275956,-1231.28,0.00011941,2]
[353980189,1740172275966,-769.3,0.00011941,2]
[353980190,1740172275976,-500.0,0.00011941,2]
[353980191,1740172275987,-916.53,0.00011941,2]
[353980192,1740172275997,-1480.7,0.00011941,2]
[353980193,1740172276007,-1452.9,0.00011941,2]
[353980194,1740172276017,-1092.95,0.00011941,2]
[353980195,1740172276027,-761.8,0.00011941,2]
[353980196,1740172276039,-931.16,0.00011941,2]
[353980197,1740172276055,-500.0,0.00011941,2]
[353980198,1740172276064,-1001.35,0.00011941,2]
[353980199,1740172276075,-2093.79,0.00011941,2]
[353980200,1740172276084,-591.75,0.00011941,2]
[353980201,1740172276094,-757.37,0.00011941,2]
[353980202,1740172276103,-500.0,0.00011941,2]
[353980203,1740172276113,-1067.6,0.00011941,2]
[353980204,1740172276123,-500.0,0.00011941,2]
[353980205,1740172276134,-1427.11,0.00011941,2]
[353980206,1740172276144,-782.56,0.00011941,2]
[353980207,1740172276154,-969.96,0.00011941,2]
[353980208,1740172276164,-842.52,0.00011941,2]
[353980209,1740172276174,-830.72,0.00011941,2]
[353980210,1740172276183,-663.66,0.00011941,2]
[353980211,1740172276193,-538.49,0.00011942,2]
[353980212,1740172276202,-500.0,0.00011942,2]
[353980213,1740172276211,-691.94,0.00011942,2]
[353980214,1740172276221,-644.17,0.00011942,2]
[353980215,1740172276231,-500.0,0.00011942,2]
[353980216,1740172276241,-500.0,0.00011942,2]
[353980217,1740172276250,-667.56,0.00011942,2]
[353980218,1740172276260,-756.41,0.00011942,2]
[353980219,1740172276270,-651.32,0.00011942,2]
[353980220,1740172276279,-500.0,0.00011942,2]
[353980221,1740172276289,-500.0,0.00011942,2]
[353980222,1740172276298,-500.0,0.00011942,2]
[353980223,1740172276308,-552.92,0.00011942,2]
[353980224,1740172276317,-664.1,0.00011942,2]
[353980225,1740172276327,-500.0,0.00011942,2]
[353980226,1740172276336,-500.0,0.00011942,2]
[353980227,1740172276346,-500.0,0.00011942,2]
[353980228,1740172276355,-641.81,0.00011942,2]
[353980229,1740172276365,-500.0,0.00011942,2]
[353980230,1740172276375,-500.0,0.00011942,2]
[353980231,1740172276384,-529.44,0.00011942,2]
[353980232,1740172276394,-500.0,0.00011942,2]
[353980233,1740172276405,-500.0,0.00011942,2]
[353980234,1740172276417,-580.98,0.00011942,2]
[353980235,1740172276426,-500.0,0.00011942,2]
[353980236,1740172276436,-656.48,0.00011942,2]
[353980237,1740172276446,-500.0,0.00011942,2]
[353980238,1740172276457,-645.51,0.00011942,2]
[353980239,1740172276467,-500.0,0.00011942,2]
[353980240,1740172276476,-500.0,0.00011942,2]
[353980241,1740172276487,-875.23,0.00011942,2]
[353980242,1740172276501,-819.32,0.00011942,2]
[353980243,1740172276511,-514.61,0.00011942,2]
[353980244,1740172276522,-500.0,0.00011942,2]
[353980245,1740172276532,-681.73,0.00011942,2]
[353980246,1740172276542,-500.0,0.00011942,2]
[353980247,1740172276552,-773.23,0.00011942,2]
[353980248,1740172276562,-500.0,0.00011942,2]
[353980249,1740172276572,-500.0,0.00011942,2]
[353980250,1740172276583,-500.0,0.00011942,2]
[353980251,1740172276593,-500.0,0.00011942,2]
[353980252,1740172276603,-500.0,0.00011942,2]
[353980253,1740172276613,-193.607216,0.00011942,2]
[353980254,1740172276623,-760.5,0.00011942,2]
[353980255,1740172276633,-500.0,0.00011942,2]
[353980256,1740172276643,-565.11,0.00011942,2]
[353980257,1740172276654,-500.0,0.00011942,2]
[353980258,1740172276664,-458.69841611,0.00011942,2]
[353980259,1740172276675,-703.17,0.00011942,2]
[353980260,1740172276685,-500.0,0.00011942,2]
[353980261,1740172276695,-709.63,0.00011942,2]
[353980262,1740172276705,-562.69,0.00011942,2]
[353980263,1740172276716,-696.24,0.00011942,2]
[353980264,1740172276726,-567.21,0.00011942,2]
[353980265,1740172276738,-500.0,0.00011942,2]
[353980266,1740172276747,-281.23673,0.00011942,2]
[353980267,1740172276757,-694.16,0.00011942,2]
[353980268,1740172276768,-678.43,0.00011942,2]
[353980269,1740172276778,-690.55,0.00011942,2]
[353980270,1740172276788,-500.0,0.00011942,2]
[353980271,1740172276798,-663.28,0.00011942,2]
[353980272,1740172276808,-500.0,0.00011942,2]
[353980273,1740172276818,-996.53,0.00011942,2]
[353980274,1740172276828,-731.38,0.00011942,2]
[353980275,1740172276838,-500.0,0.00011942,2]
[353980276,1740172276849,-643.91,0.00011942,2]
[353980277,1740172276860,-500.0,0.00011942,2]
[353980278,1740172276871,-500.0,0.00011942,2]
[353980279,1740172276882,-731.06,0.00011942,2]
[353980280,1740172276893,-500.0,0.00011942,2]
[353980281,1740172276903,-500.0,0.00011942,2]
[353980282,1740172276914,-545.46512008,0.00011942,2]
[353980283,1740172276924,-500.0,0.00011942,2]
[353980284,1740172276936,-710.81,0.00011942,2]
[353980285,1740172276946,-500.6,0.00011942,2]
[353980286,1740172276956,-288.88025511,0.00011942,2]
[353980287,1740172276967,-624.32,0.00011942,2]
[353980288,1740172276977,-500.0,0.00011942,2]
[353980289,1740172276988,-595.44,0.00011942,2]
[353980290,1740172276998,-751.36,0.00011942,2]
[353980291,1740172277009,-636.57,0.00011942,2]
[353980292,1740172277018,-500.0,0.00011942,2]
[353980293,1740172277029,-500.0,0.00011942,2]
[353980294,1740172277039,-500.0,0.00011942,2]
[353980295,1740172277049,-893.82,0.00011942,2]
[353980296,1740172277059,-174.831552,0.00011942,2]
[353980297,1740172277070,-500.0,0.00011942,2]
[353980298,1740172277080,-500.0,0.00011942,2]
[353980299,1740172277090,-500.0,0.00011942,2]
[353980300,1740172277100,-587.07,0.00011942,2]
[353980301,1740172277110,-500.0,0.00011942,2]
[353980302,1740172277120,-1704.14,0.00011942,2]
[353980303,1740172277130,-500.0,0.00011942,2]
[353980304,1740172277140,-870.24,0.00011942,2]
[353980305,1740172277150,-523.06,0.00011942,2]
[353980306,1740172277160,-1140.49,0.00011942,2]
[353980307,1740172277170,-1885.94,0.00011942,2]
[353980308,1740172277180,-762.29,0.00011942,2]
[353980309,1740172277191,-985.36,0.00011942,2]
[353980310,1740172277200,-1329.74,0.00011942,2]
[353980311,1740172277211,-1050.0,0.00011942,2]
[353980312,1740172277220,-841.39,0.00011942,2]
[353980313,1740172277230,-500.0,0.00011942,2]
[353980314,1740172277241,-1478.11,0.00011942,2]
[353980315,1740172277252,-1687.94,0.00011942,2]
[353980316,1740172277262,-1236.11,0.00011942,2]
[353980317,1740172277272,-500.0,0.00011942,2]
[353980318,1740172277284,-527.93,0.00011942,2]
[353980319,1740172277294,-500.0,0.00011942,2]
[353980320,1740172277305,-836.59,0.00011942,2]
[353980321,1740172277314,-1031.57,0.00011942,2]
[353980322,1740172277324,-1035.44,0.00011942,2]
[353980323,1740172277335,-500.0,0.00011942,2]
[353980324,1740172277346,-1245.12,0.00011942,2]
[353980325,1740172277356,-1117.96,0.00011942,2]
[353980326,1740172277366,-1068.45,0.00011942,2]
[353980327,1740172277376,-1183.89,0.00011942,2]
[353980328,1740172277386,-500.0,0.00011942,2]
[353980329,1740172277396,-1056.87,0.00011942,2]
[353980330,1740172277407,-5637.87,0.00011942,2]
[353980331,1740172277420,-797.09,0.00011942,2]
[353980332,1740172277430,-559.58,0.00011942,2]
[353980333,1740172277439,-1352.53,0.00011942,2]
[353980334,1740172277451,-739.7,0.00011942,2]
[353980335,1740172277461,-500.0,0.00011942,2]
[353980336,1740172277471,-1479.65,0.00011942,2]
[353980337,1740172277481,-500.0,0.00011942,2]
[353980338,1740172277495,-896.66,0.00011942,2]
[353980339,1740172277505,-2215.1,0.00011942,2]
[353980340,1740172277515,-1219.06,0.00011942,2]
[353980341,1740172277524,-500.0,0.00011942,2]
[353980342,1740172277534,-1253.82,0.00011942,2]
[353980343,1740172277545,-1134.86,0.00011942,2]
[353980344,1740172277555,-1523.22,0.00011942,2]
[353980345,1740172277565,-500.0,0.00011942,2]
[353980346,1740172277575,-500.0,0.00011942,2]
[353980347,1740172277586,-1190.42,0.00011942,2]
[353980348,1740172277596,-942.8,0.00011942,2]
[353980349,1740172277607,-500.0,0.00011942,2]
[353980350,1740172277616,-500.0,0.00011942,2]
[353980351,1740172277626,-579.37,0.00011942,2]
[353980352,1740172277636,-1258.98,0.00011942,2]
[353980353,1740172277646,-1291.85,0.00011942,2]
[353980354,1740172277656,-500.0,0.00011942,2]
[353980355,1740172277666,-1149.69,0.00011942,2]
[353980356,1740172277676,-661.23,0.00011942,2]
[353980357,1740172277686,-2660.4,0.00011942,2]
[353980358,1740172277695,-1991.69,0.00011942,2]
[353980359,1740172277705,-500.0,0.00011942,2]
[353980360,1740172277716,-614.9,0.00011942,2]
[353980361,1740172277726,-1151.83,0.00011942,2]
[353980362,1740172277736,-500.0,0.00011942,2]
[353980363,1740172277746,-811.74,0.00011942,2]
[353980364,1740172277756,-1450.82,0.00011942,2]
[353980365,1740172277766,-1170.09,0.00011942,2]
[353980366,1740172277776,-500.0,0.00011942,2]
[353980367,1740172277786,-500.0,0.00011942,2]
[353980368,1740172277797,-897.28,0.00011942,2]
[353980369,1740172277807,-1737.05,0.00011942,2]
[353980370,1740172277817,-500.0,0.00011942,2]
[353980371,1740172277828,-853.87,0.00011942,2]
[353980372,1740172277838,-500.0,0.00011942,2]
[353980373,1740172277847,-638.91,0.00011942,2]
[353980374,1740172277857,-511.08,0.00011942,2]
[353980375,1740172277868,-1229.62,0.00011942,2]
[353980376,1740172277879,-580.46,0.00011942,2]
[353980377,1740172277889,-1513.79,0.00011942,2]
[353980378,1740172277899,-1136.08,0.00011942,2]
[353980379,1740172277909,-794.55,0.00011942,2]
[353980380,1740172277919,-1175.93,0.00011942,2]
[353980381,1740172277930,-500.0,0.00011942,2]
[353980382,1740172277939,-500.0,0.00011942,2]
[353980383,1740172277949,-987.72,0.00011942,2]
[353980384,1740172277959,-731.97,0.00011942,2]
[353980385,1740172277969,-500.0,0.00011942,2]
[353980386,1740172277978,-1199.69,0.00011942,2]
[353980387,1740172277989,-1172.47,0.00011942,2]
[353980388,1740172277999,-2284.05,0.00011942,2]
[353980389,1740172278008,-5314.28,0.00011942,2]
[353980390,1740172278018,-388.30000752,0.00011942,2]
[353980391,1740172278028,-1158.45,0.00011942,2]
[353980392,1740172278038,-588.49,0.00011942,2]
[353980393,1740172278049,-500.0,0.00011942,2]
[353980394,1740172278058,-1637.66,0.00011942,2]
[353980395,1740172278069,-1092.4,0.00011942,2]
[353980396,1740172278079,-500.0,0.00011942,2]
[353980397,1740172278090,-1130.79,0.00011942,2]
[353980398,1740172278101,-589.95,0.00011942,2]
[353980399,1740172278111,-961.8,0.00011942,2]
[353980400,1740172278121,-500.0,0.00011942,2]
[353980401,1740172278132,-839.71,0.00011942,2]
[353980402,1740172278143,-500.0,0.00011942,2]
[353980403,1740172278153,-597.77,0.00011942,2]
[353980404,1740172278163,-863.56,0.00011942,2]
[353980405,1740172278403,-2270.11,0.00011942,2]
[353980406,1740172278417,-2553.24,0.00011942,2]
[353980407,1740172278427,-500.0,0.00011942,2]
[353980408,1740172278436,-1389.81,0.00011942,2]
[353980409,1740172278447,-429.29098169,0.00011943,2]
[353980410,1740172278457,-519.67,0.00011943,2]
[353980411,1740172278466,-500.0,0.00011943,2]
[353980412,1740172278475,-500.0,0.00011943,2]
[353980413,1740172278486,-500.0,0.00011943,2]
[353980414,1740172278496,-500.0,0.00011943,2]
[353980415,1740172278505,-500.0,0.00011943,2]
[353980416,1740172278514,-500.0,0.00011943,2]
[353980417,1740172278524,-500.0,0.00011943,2]
[353980418,1740172278534,-500.0,0.00011943,2]
[353980419,1740172278544,-500.0,0.00011943,2]
[353980420,1740172278554,-548.27803137,0.00011943,2]
[353980421,1740172278563,-500.0,0.00011943,2]
[353980422,1740172278572,-500.0,0.00011943,2]
[353980423,1740172278582,-500.0,0.00011943,2]
[353980424,1740172278591,-560.52636304,0.00011943,2]
[353980425,1740172278600,-500.0,0.00011944,2]
[353980426,1740172278610,-411.56421989,0.00011945,2]
[353980427,1740172278620,-500.0,0.00011945,2]
[353980428,1740172278630,-150.0,0.00011945,2]
[353980429,1740172278639,-500.0,0.00011945,2]
[353980430,1740172278648,-250.11233461,0.00011945,2]
[353980431,1740172278657,-500.0,0.00011945,2]
[353980432,1740172278667,-150.0,0.00011945,2]
[353980433,1740172278676,-902.0,0.00011945,2]
[353980434,1740172278685,-500.0,0.00011948,2]
[353980435,1740172278694,-1100.0,0.00011948,2]
[353980436,1740172278704,-501.4190747,0.00011972,2]
[353980437,1740172278714,-269.6071602,0.00011972,2]
[353980438,1740172278723,-500.0,0.00011972,2]
[353980439,1740172278732,-500.0,0.00011972,2]
[353980440,1740172278742,-902.0,0.00011972,2]
[353980441,1740172278752,-255.0,0.00011976,2]
[353980442,1740172278762,-4217.13181045,0.00011979,2]
[353980443,1740172278772,-210.98615716,0.00011993,2]
[353980444,1740172278781,-500.00095005,0.00012,2]
[353980445,1740172278791,-500.0,0.00012,2]
[353980446,1740172278801,-902.0,0.00012,2]
[353980447,1740172278810,-5000.0,0.00012,5]
[353980448,1740172278820,-132231.69591861,0.00012,2]
[353980449,1740172278830,-600.0,0.00012,2]
[353980450,1740172278840,-1000.0,0.00012,2]
[353980451,1740172278849,-538.49,0.00012024,2]
[353980452,1740172278859,-500.0,0.00012024,2]
[353980453,1740172278869,-691.94,0.00012024,2]
[353980454,1740172278880,-644.17,0.00012024,2]
[353980455,1740172278889,-500.0,0.00012024,2]
[353980456,1740172278899,-500.0,0.00012024,2]
[353980457,1740172278909,-667.56,0.00012024,2]
[353980458,1740172278919,-756.41,0.00012024,2]
[353980459,1740172278928,-651.32,0.00012024,2]
[353980460,1740172278939,-500.0,0.00012024,2]
[353980461,1740172278949,-500.0,0.00012024,2]
[353980462,1740172278959,-604.83142336,0.00012024,2]
[353980463,1740172278969,-552.92,0.00012024,2]
[353980464,1740172278978,-664.1,0.00012024,2]
[353980465,1740172278989,-500.0,0.00012024,2]
[353980466,1740172278999,-500.0,0.00012024,2]
[353980467,1740172279009,-500.0,0.00012024,2]
[353980468,1740172279019,-641.81,0.00012024,2]
[353980469,1740172279029,-500.0,0.00012024,2]
[353980470,1740172279040,-500.0,0.00012024,2]
[353980471,1740172279050,-529.44,0.00012024,2]
[353980472,1740172279060,-500.0,0.00012024,2]
[353980473,1740172279070,-500.0,0.00012024,2]
[353980474,1740172279082,-580.98,0.00012024,2]
[353980475,1740172279092,-500.0,0.00012024,2]
[353980476,1740172279102,-656.48,0.00012024,2]
[353980477,1740172279111,-500.0,0.00012024,2]
[353980478,1740172279121,-645.51,0.00012024,2]
[353980479,1740172279131,-632.35898336,0.00012024,2]
[353980480,1740172279140,-500.0,0.00012024,2]
[353980481,1740172279150,-875.23,0.00012024,2]
[353980482,1740172279159,-819.32,0.00012024,2]
[353980483,1740172279169,-514.61,0.00012024,2]
[353980484,1740172279179,-500.0,0.00012024,2]
[353980485,1740172279189,-681.73,0.00012024,2]
[353980486,1740172279199,-500.0,0.00012024,2]
[353980487,1740172279208,-773.23,0.00012024,2]
[353980488,1740172279217,-500.0,0.00012024,2]
[353980489,1740172279227,-500.0,0.00012024,2]
[353980490,1740172279236,-500.0,0.00012024,2]
[353980491,1740172279246,-371.70706263,0.00012024,2]
[353980492,1740172279256,-500.0,0.00012024,2]
[353980493,1740172279265,-193.607216,0.00012024,2]
[353980494,1740172279274,-760.5,0.00012024,2]
[353980495,1740172279284,-500.0,0.00012024,2]
[353980496,1740172279293,-565.11,0.00012024,2]
[353980497,1740172279303,-500.0,0.00012024,2]
[353980498,1740172279312,-703.17,0.00012024,2]
[353980499,1740172279321,-500.0,0.00012024,2]
[353980500,1740172279331,-709.63,0.00012024,2]
[353980501,1740172279340,-562.69,0.00012024,2]
[353980502,1740172279349,-696.24,0.00012024,2]
[353980503,1740172279359,-567.21,0.00012024,2]
[353980504,1740172279369,-500.0,0.00012024,2]
[353980505,1740172279378,-281.23673,0.00012024,2]
[353980506,1740172279388,-694.16,0.00012024,2]
[353980507,1740172279398,-678.43,0.00012024,2]
[353980508,1740172279407,-690.55,0.00012024,2]
[353980509,1740172279421,-500.0,0.00012024,2]
[353980510,1740172279432,-663.28,0.00012024,2]
[353980511,1740172279442,-397.51524729,0.00012024,2]
[353980512,1740172279451,-996.53,0.00012024,2]
[353980513,1740172279462,-731.38,0.00012024,2]
[353980514,1740172279472,-500.0,0.00012024,2]
[353980515,1740172279481,-643.91,0.00012024,2]
[353980516,1740172279494,-156.366219,0.00012024,2]
[353980517,1740172279504,-500.0,0.00012024,2]
[353980518,1740172279514,-500.0,0.00012024,2]
[353980519,1740172279523,-731.06,0.00012024,2]
[353980520,1740172279532,-500.0,0.00012024,2]
[353980521,1740172279542,-500.0,0.00012024,2]
[353980522,1740172279552,-500.0,0.00012024,2]
[353980523,1740172279562,-710.81,0.00012024,2]
[353980524,1740172279571,-500.6,0.00012024,2]
[353980525,1740172279581,-624.32,0.00012024,2]
[353980526,1740172279591,-500.0,0.00012024,2]
[353980527,1740172279600,-595.44,0.00012024,2]
[353980528,1740172279610,-751.36,0.00012024,2]
[353980529,1740172279619,-636.57,0.00012024,2]
[353980530,1740172279629,-500.0,0.00012024,2]
[353980531,1740172279638,-500.0,0.00012024,2]
[353980532,1740172279647,-893.82,0.00012024,2]
[353980533,1740172279656,-500.0,0.00012024,2]
[353980534,1740172279667,-174.831552,0.00012024,2]
[353980535,1740172279676,-500.0,0.00012024,2]
[353980536,1740172279686,-500.0,0.00012024,2]
[353980537,1740172279695,-449.0527175,0.00012024,2]
[353980538,1740172279705,-587.07,0.00012024,2]
[353980539,1740172279715,-500.0,0.00012024,2]
[353980540,1740172279724,-1704.14,0.00012024,2]
[353980541,1740172279734,-500.0,0.00012024,2]
[353980542,1740172279744,-870.24,0.00012024,2]
[353980543,1740172279754,-523.06,0.00012024,2]
[353980544,1740172279764,-1140.49,0.00012024,2]
[353980545,1740172279773,-1885.94,0.00012024,2]
[353980546,1740172279783,-762.29,0.00012024,2]
[353980547,1740172279793,-985.36,0.00012024,2]
[353980548,1740172279803,-1329.74,0.00012024,2]
[353980549,1740172279813,-1050.0,0.00012024,2]
[353980550,1740172279822,-841.39,0.00012024,2]
[353980551,1740172279832,-592.31081868,0.00012024,2]
[353980552,1740172279842,-1478.11,0.00012024,2]
[353980553,1740172279852,-1687.94,0.00012024,2]
[353980554,1740172279862,-1236.11,0.00012024,2]